bitfinex-derivatives/quotes_ETHF0:USTF0_20251226
["timestamp","ask_amount","ask_price","bid_price","bid_amount"]
[1766760543403,1.72394116,2937.3,2933.5,0.17054]
[1766760543710,1.72394116,2936.1,2932.7,0.27280194]
[1766760543914,1.72394116,2936.8,2932.8,0.17058]
[1766760544107,1.72394116,2936.8,2932.9,1.495]
[1766760544301,0.0032155,2936.8,2933.8,0.17052]
[1766760544506,0.0032155,2936.8,2934.1,1.72394116]
[1766760545217,0.17023,2938.9,2935.2,0.17044]
[1766760545510,137.69063386,2941.1,2934.6,1.5]
[1766760545511,1.72394116,2938.7,2934.6,1.5]
[1766760545698,1.72394116,2938.7,2934.1,10.02235538]
[1766760545699,5.377,2938.9,2936.8,0.00511177]
[1766760545899,5.377,2938.9,2935.4,0.17043]
[1766760546102,0.1703,2937.6,2934.9,4.50825694]
[1766760546302,0.00321273,2937.6,2934.9,0.00254295]
[1766760546504,0.00321273,2937.6,2934.9,0.01320902]
[1766760546704,0.00321273,2937.6,2935.0,4.3543051]
[1766760546905,0.00511177,2936.5,2933.7,1.72394116]
[1766760547105,0.00511177,2936.5,2933.3,1.23490136]
[1766760547309,0.672,2936.4,2932.7,0.17058]
[1766760547613,1.72394116,2936.9,2934.4,3.69628938]
[1766760547813,0.17039,2936.1,2934.4,0.83578938]
[1766760548013,0.00511177,2935.5,2935.0,0.00511177]
[1766760548208,0.00909499,2935.5,2933.8,4.46437684]
[1766760548518,0.00909499,2935.5,2931.8,5.47]
[1766760548711,5.379,2935.4,2932.0,0.01066607]
[1766760549014,0.00398322,2935.5,2931.8,0.26710431]
[1766760549015,0.00398322,2935.5,2932.5,0.1706]
[1766760549205,0.00511177,2934.3,2932.5,0.00349181]
[1766760549611,0.00511177,2934.3,2932.6,4.35428804]
[1766760550018,0.00398322,2935.5,2932.6,4.35428804]
[1766760550216,0.00398322,2935.5,2932.7,3.63778504]
[1766760550415,1.72394116,2935.4,2932.6,4.35428804]
[1766760550607,0.17053,2933.7,2931.5,0.01]
[1766760550807,1.72394116,2934.4,2931.5,0.02066607]
[1766760550808,1.572,2933.6,2931.5,0.02066607]
[1766760551115,1.50848,2934.6,2932.3,0.00511177]
[1766760551316,0.00398322,2935.5,2932.3,0.00511177]
[1766760551510,0.17044,2935.4,2932.4,4.45545048]
[1766760551712,0.00398322,2935.5,2932.4,0.01066607]
[1766760551913,0.00398322,2935.5,2933.5,0.17054]
[1766760552105,0.00398322,2935.5,2934.2,0.00511177]
[1766760552612,0.00398322,2935.5,2934.2,1.177e-05]
[1766760552810,0.17441322,2935.5,2934.2,1.177e-05]
[1766760553012,0.00398322,2935.5,2934.2,1.177e-05]
[1766760553211,0.00398322,2935.5,2934.3,0.01066607]
[1766760553406,0.00398322,2935.5,2934.4,0.01066607]
[1766760553718,0.12153495,2936.4,2934.4,0.01391076]
[1766760553916,0.12153495,2936.4,2934.5,4.47554243]
[1766760554209,0.12153495,2936.4,2934.4,0.00324469]
[1766760554610,0.12445424,2936.4,2934.4,0.00324469]
[1766760554817,0.00511177,2935.7,2934.4,0.00324469]
[1766760555315,0.00511177,2935.7,2934.9,0.01066607]
[1766760555816,0.12445424,2936.4,2934.9,0.01066607]
[1766760556016,0.12445424,2936.4,2935.0,4.48650973]
[1766760556313,23.841,2938.6,2935.0,4.48650973]
[1766760556314,0.17019,2939.6,2936.1,1.72394116]
[1766760556518,23.842,2941.0,2936.9,1.72394116]
[1766760556519,0.1702,2939.4,2936.9,1.72394116]
[1766760556714,0.17023,2938.9,2936.2,3.55675365]
[1766760556920,1.72394116,2938.9,2935.6,0.17042]
[1766760557118,0.00511177,2937.8,2935.6,0.002705]
[1766760557317,0.00511177,2937.8,2935.0,4.48650973]
[1766760557522,0.17035,2936.8,2935.0,4.48650973]
[1766760557819,0.17036,2936.7,2935.2,4.41307873]
[1766760558015,0.17036,2936.6,2935.2,4.41307873]
[1766760558215,0.00511177,2936.2,2935.7,3.37929728]
[1766760558414,0.17043,2935.6,2932.8,0.27435045]
[1766760558613,0.00299942,2936.2,2932.8,4.70033438]
[1766760558811,1.72394116,2935.4,2932.8,4.42598393]
[1766760559019,0.17046,2935.0,2931.9,1.72394116]
[1766760559219,0.17046,2935.0,2932.9,4.42952197]
[1766760559417,0.00511177,2934.2,2932.9,4.43297269]
[1766760559618,0.00511177,2934.2,2932.9,0.00345072]
[1766760559619,0.17561177,2934.2,2932.9,0.00345072]
[1766760560516,0.00511177,2934.2,2933.3,0.00511177]
[1766760560719,0.00511177,2934.2,2932.9,0.01411679]
[1766760560720,0.00511177,2934.2,2932.9,0.00345072]
[1766760560924,0.00511177,2934.2,2933.0,0.01066607]
[1766760562221,1.177e-05,2934.2,2933.1,4.46566132]
[1766760562521,1.177e-05,2934.2,2933.0,0.01066607]
[1766760562723,1.177e-05,2934.2,2933.1,4.46566132]
[1766760563230,5.38,2935.7,2933.0,0.01066607]
[1766760563420,5.38,2935.7,2933.7,0.01066607]
[1766760563621,5.38,2936.3,2933.7,0.01066607]
[1766760563821,0.95851102,2936.1,2933.0,4.45450651]
[1766760564132,0.17051,2934.0,2931.2,0.17067]
[1766760564326,0.17051,2934.0,2932.5,0.00511177]
[1766760564827,0.17051,2934.0,2932.5,0.01577784]
[1766760565026,0.00283526,2934.0,2932.5,0.01840833]
[1766760565531,0.17049,2934.4,2933.7,8.1e-07]
[1766760565825,0.96490956,2934.3,2932.5,0.00263049]
[1766760566029,0.17052,2933.9,2932.5,0.00263049]
[1766760566431,1.177e-05,2933.5,2932.9,0.00511177]
[1766760566630,0.00320272,2933.9,2932.9,0.00511177]
[1766760566928,5.55343,2935.5,2933.0,4.44907516]
[1766760567126,0.96774084,2935.4,2933.0,4.44907516]
[1766760567332,0.1704,2936.0,2933.2,0.17056]
[1766760567529,2.08907707,2935.9,2932.8,4.41394462]
[1766760567829,2.08907707,2935.9,2932.5,0.00263049]
[1766760567830,0.00511177,2934.6,2934.1,0.00511177]
[1766760568135,0.00511177,2934.6,2932.9,4.41394462]
[1766760568334,0.00511177,2934.6,2932.6,4.49357997]
[1766760568628,0.17559177,2934.6,2932.7,4.49357997]
[1766760568833,0.00511177,2934.6,2932.7,4.49357997]
[1766760569018,0.17049,2934.4,2933.4,0.00511177]
[1766760569219,1.1408662,2934.3,2932.5,0.00263049]
[1766760569430,0.17054,2933.5,2932.5,0.00263049]
[1766760569733,1.1408662,2933.3,2930.9,0.17069]
[1766760569920,0.17057,2933.0,2929.8,1.72394116]
[1766760570235,0.00511177,2932.5,2930.2,0.27240001]
[1766760570526,1.177e-05,2932.5,2931.6,4.41186811]
[1766760570722,1.31414111,2933.5,2931.6,4.41429077]
[1766760570925,0.00273491,2933.5,2931.6,4.41429077]
[1766760571135,0.17327491,2933.5,2931.6,4.41429077]
[1766760571331,1.14360111,2933.5,2931.6,0.00242266]
[1766760571637,1.3114562,2932.8,2931.6,0.00242266]
[1766760571822,0.00511177,2932.5,2931.9,0.00511177]
[1766760572219,0.00511177,2932.5,2931.6,0.00242266]
[1766760573228,0.00511177,2932.5,2931.8,0.00511177]
[1766760573530,1.3115062,2931.9,2928.7,1.72394116]
[1766760573735,0.17064,2931.9,2929.4,0.17078]
[1766760574027,0.17064,2931.9,2929.9,4.33785289]
[1766760574219,7.13063386,2932.3,2929.5,0.17077]
[1766760574220,1.1408662,2932.3,2930.0,1.72394116]
[1766760574419,0.1706,2932.5,2930.2,0.17073]
[1766760574824,0.1706,2932.5,2930.0,4.39006453]
[1766760574825,1.1408662,2932.8,2930.3,4.38757405]
[1766760575030,1.1408662,2933.0,2930.6,0.17071]
[1766760575227,1.1408662,2933.0,2931.0,1.72394116]
[1766760575429,0.00273491,2933.5,2931.7,0.00511177]
[1766760575430,1.14360111,2933.5,2931.7,0.00511177]
[1766760575633,0.00273491,2933.5,2931.7,1.72905293]
[1766760575833,1.74663386,2934.2,2931.7,1.72905293]
[1766760575834,1.1408662,2934.2,2932.2,0.17061]
[1766760576034,1.1408662,2934.6,2931.8,8.1237026]
[1766760576224,1.1408662,2934.7,2932.4,1.72394116]
[1766760576431,0.00511177,2933.8,2932.3,3.82587166]
[1766760576630,0.00511177,2933.8,2933.3,0.00511177]
[1766760576827,0.17048,2934.6,2933.3,0.00779815]
[1766760577230,5.384,2934.6,2928.6,11.7069171]
[1766760577531,1.1408662,2934.1,2932.1,0.17062]
[1766760577731,1.1408662,2934.1,2931.2,1.72394116]
[1766760577937,1.1408662,2934.1,2932.2,4.52621533]
[1766760578136,1.3113662,2934.2,2932.2,4.52621533]
[1766760578334,0.17565177,2933.5,2932.9,1.77e-06]
[1766760578541,1.1408662,2933.4,2932.2,0.00370565]
[1766760578836,0.00511177,2933.5,2932.2,0.00370565]
[1766760579231,0.00511177,2933.5,2932.3,4.44125421]
[1766760579431,0.96330126,2933.4,2932.6,0.00511177]
[1766760579633,0.17058,2933.0,2929.8,1.72394116]
[1766760579836,0.17059,2932.7,2930.3,0.17072]
[1766760580037,0.96330126,2932.6,2930.6,4.44125421]
[1766760580233,0.96330126,2932.5,2930.4,4.52442861]
[1766760580431,0.96330126,2932.4,2930.7,4.52442861]
[1766760580731,1.1408662,2933.0,2930.9,0.17069]
[1766760580925,1.1408662,2933.0,2930.7,0.00244978]
[1766760580926,1.1408662,2933.4,2931.3,1.72394116]
[1766760581129,1.1408662,2933.5,2931.3,1.72394116]
[1766760581328,1.1408662,2933.8,2932.0,1.72394116]
[1766760581526,1.74663386,2934.0,2932.0,1.72394116]
[1766760581527,0.00386708,2934.2,2932.0,1.72394116]
[1766760581735,0.17437708,2934.2,2932.6,0.00511177]
[1766760582136,0.00386708,2934.2,2932.7,4.37153405]
[1766760582435,1.14473328,2934.2,2932.6,0.00511177]
[1766760582733,1.14473328,2934.2,2932.7,4.37153405]
[1766760582734,0.00386708,2934.2,2932.7,4.37153405]
[1766760583333,0.00386708,2934.2,2932.6,0.00511177]
[1766760583334,1.1408662,2934.1,2932.6,0.00511177]
[1766760583534,0.00386708,2934.2,2930.8,0.1707]
[1766760583535,0.17056,2933.2,2930.8,0.1707]
[1766760583838,1.3114262,2933.2,2930.8,3.76208204]
[1766760584033,1.3114262,2933.2,2930.9,4.38658458]
[1766760584234,1.1408662,2933.2,2931.1,0.17068]
[1766760584434,1.1408662,2933.1,2931.1,0.17068]
[1766760584634,0.00511177,2932.4,2931.8,0.00511177]
[1766760584837,0.00511177,2932.4,2930.3,0.17073]
[1766760585236,0.00511177,2932.4,2931.2,4.41992526]
[1766760585540,0.00511177,2932.4,2930.4,0.17072]
[1766760585936,0.00511177,2932.4,2931.3,0.00511177]
[1766760586843,0.00511177,2932.4,2931.4,4.53433489]
[1766760587238,0.6403662,2933.1,2932.0,0.17063]
[1766760587444,1.74663386,2933.6,2931.5,3.90608929]
[1766760587645,1.74663386,2933.4,2932.1,4.47868528]
[1766760587946,1.91723386,2932.5,2931.3,0.00511177]
[1766760588134,0.00511177,2932.2,2931.3,0.00511177]
[1766760588332,1.75174563,2932.2,2931.3,0.00511177]
[1766760588536,1.74663386,2931.8,2930.7,0.00244978]
[1766760588847,1.75076371,2931.8,2930.7,0.00244978]
[1766760589048,1.74663386,2931.6,2930.7,0.00244978]
[1766760589346,0.00511177,2932.2,2930.7,0.00244978]
[1766760589546,0.00511177,2932.2,2931.2,0.00511177]
[1766760589746,1.177e-05,2932.2,2931.2,0.00511177]
[1766760590052,1.177e-05,2932.2,2931.3,4.43021531]
[1766760590344,0.00414395,2932.2,2931.3,4.43021531]
[1766760590545,1.74663386,2932.9,2931.3,4.43021531]
[1766760590850,2.47212087,2933.3,2931.3,4.43021531]
[1766760590851,1.74663386,2933.0,2931.3,4.43021531]
[1766760591140,1.74663386,2932.9,2931.3,4.43021531]
[1766760591345,0.00511177,2932.4,2931.3,4.43021531]
[1766760591548,1.74963366,2932.9,2931.3,4.43021531]
[1766760591746,0.0029998,2932.9,2931.3,4.43021531]
[1766760592154,1.91714386,2934.1,2931.3,4.43021531]
[1766760592348,0.17051,2934.1,2931.4,3.71718161]
[1766760592752,0.86978777,2934.0,2931.9,0.17063]
[1766760593041,0.17053,2933.7,2932.0,4.46043814]
[1766760593247,1.4792356,2933.6,2932.0,4.46043814]
[1766760593442,0.00511177,2933.1,2932.5,0.00511177]
[1766760594048,0.00511177,2933.1,2930.5,0.17072]
[1766760594049,1.0404636,2933.0,2930.5,0.17072]
[1766760594244,1.0404636,2933.0,2929.0,23.881]
[1766760594245,0.8698936,2932.9,2930.6,0.17071]
[1766760594545,0.8698936,2932.8,2931.3,4.41986538]
[1766760594851,0.00511177,2933.1,2931.5,0.17066]
[1766760595045,0.00511177,2933.1,2931.8,0.00511177]
[1766760595549,0.8698931,2933.0,2931.8,0.00511177]
[1766760595750,0.8698931,2932.9,2931.8,0.00511177]
[1766760595949,0.8698931,2932.8,2931.8,0.00511177]
[1766760596151,0.8698931,2932.7,2931.8,0.00511177]
[1766760596343,0.17568177,2933.1,2931.8,0.00511177]
[1766760596546,0.86993147,2933.0,2931.8,0.00511177]
[1766760596744,0.17568177,2933.1,2931.8,0.00511177]
[1766760596950,0.86995531,2933.0,2931.8,0.00511177]
[1766760597150,0.86995531,2932.9,2931.8,0.00511177]
[1766760597352,0.87063514,2932.8,2931.8,0.00511177]
[1766760597646,0.17058,2932.9,2931.8,0.00511177]
[1766760597846,0.00511177,2933.1,2931.8,0.00511177]
[1766760598051,0.87068061,2933.0,2931.8,0.00511177]
[1766760598240,0.17568177,2933.1,2931.8,0.00511177]
[1766760598648,0.00511177,2933.1,2931.8,0.00511177]
[1766760598843,0.00511177,2933.1,2931.9,4.34187264]
[1766760599150,0.00253643,2933.7,2931.9,4.34187264]
[1766760599753,0.00253643,2933.7,2932.6,0.17059]
[1766760599948,0.00253643,2933.7,2931.9,4.34187264]
[1766760600146,0.17045,2935.1,2932.7,4.41937844]
[1766760600448,2.191,2936.1,2932.8,3.81764873]
[1766760600756,1.74663386,2935.2,2932.8,4.37272003]
[1766760601055,5.14063386,2934.9,2931.3,0.17067]
[1766760601347,0.17055,2933.5,2932.8,1.895e-05]
[1766760601548,5.374,2934.2,2931.4,4.63816861]
[1766760601745,23.88,2935.4,2931.4,0.17066]
[1766760601746,0.87215609,2934.1,2931.4,0.17066]
[1766760601941,0.87215609,2934.0,2931.5,4.63815861]
[1766760602155,0.1705,2934.3,2932.5,0.00511177]
[1766760602354,0.1705,2934.3,2932.5,0.00941032]
[1766760602553,0.1705,2934.3,2932.6,4.43052119]
[1766760602756,4.12,2934.4,2932.5,0.00941032]
[1766760602947,1.30119347,2934.3,2930.5,3.04457306]
[1766760603253,0.17055,2933.4,2931.1,4.50411959]
[1766760603456,2.23151,2934.1,2931.4,0.17066]
[1766760603648,1.04294871,2934.0,2931.4,0.17066]
[1766760603958,0.00511177,2933.0,2932.4,0.00511177]
[1766760604162,0.00891763,2933.0,2931.5,4.50411959]
[1766760604848,0.00891763,2933.0,2931.4,0.0031089]
[1766760605047,0.00891763,2933.0,2931.9,0.00511177]
[1766760605246,0.17061,2932.3,2929.2,3.04457306]
[1766760605448,0.00380586,2933.0,2928.9,3.04457306]
[1766760605742,0.17066,2931.5,2929.3,4.42311661]
[1766760605946,5.27965566,2931.4,2929.2,4.42311661]
[1766760606149,0.17071,2930.7,2928.6,0.2461352]
[1766760606458,0.17071,2930.7,2929.4,1.177e-05]
[1766760606459,0.00511177,2929.9,2929.4,1.177e-05]
[1766760606647,0.00511177,2929.9,2926.3,4.20954314]
[1766760606847,5.37598777,2930.7,2926.1,0.17097]
[1766760606848,4.26349612,2929.8,2926.1,0.17097]
[1766760607047,47.17367859,2929.7,2926.1,0.17097]
[1766760607248,0.86949612,2929.6,2926.1,0.17097]
[1766760607443,2.30554864,2930.7,2926.2,8.49669008]
[1766760607444,0.17075,2930.0,2926.2,8.49669008]
[1766760607649,0.17075,2930.0,2927.8,0.00512068]
[1766760607952,40.8,2930.6,2927.8,0.00512068]
[1766760608152,0.17073,2930.4,2927.9,4.54058983]
[1766760608353,0.17073,2930.4,2927.8,0.00512068]
[1766760608354,5.376,2930.3,2927.8,0.00512068]
[1766760608657,0.00512068,2929.3,2926.8,0.17093]
[1766760608853,0.00512068,2929.3,2926.9,0.17093]
[1766760609055,0.00512068,2929.3,2927.0,0.17092]
[1766760609352,0.00512068,2929.3,2927.6,0.17088]
[1766760609552,0.00512068,2929.3,2927.1,8.13094852]
[1766760609756,0.00512068,2929.3,2927.9,0.00512068]
[1766760610360,0.00512068,2929.3,2928.0,4.34310099]
[1766760610858,0.00512068,2929.3,2927.9,0.00512068]
[1766760611558,0.17079,2929.2,2926.2,0.17527969]
[1766760611753,0.17079,2929.2,2926.2,0.00431969]
[1766760611958,0.17079,2929.2,2926.3,4.4834954]
[1766760612159,0.1708,2929.1,2926.4,0.17095]
[1766760612453,0.38512068,2929.3,2926.2,0.00431969]
[1766760612454,0.6508,2929.0,2926.5,4.53400997]
[1766760612656,0.17081,2928.9,2926.5,4.53400997]
[1766760612958,0.17081,2928.9,2926.4,4.53400997]
[1766760613256,0.17086,2928.1,2926.2,0.00431969]
[1766760613445,0.7273671,2928.1,2926.2,0.00431969]
[1766760613650,0.00512068,2927.4,2926.2,0.00431969]
[1766760613859,0.00512068,2927.4,2924.1,0.17109]
[1766760614056,0.00512068,2926.0,2924.2,0.17108]
[1766760614255,0.00512068,2926.0,2924.2,4.55745641]
[1766760614453,0.00512068,2926.0,2924.2,0.17108]
[1766760614657,0.00512068,2926.0,2923.2,0.129]
[1766760614953,0.00817934,2926.0,2924.2,0.00395474]
[1766760615351,0.00817934,2926.0,2924.3,4.38159655]
[1766760615561,0.53453017,2925.9,2924.2,0.00395474]
[1766760615755,0.00817934,2926.0,2924.2,0.00395474]
[1766760615949,0.00817934,2926.0,2924.3,4.38159655]
[1766760616254,6.75541465,2929.4,2924.7,0.17105]
[1766760616454,30.66469609,2929.3,2924.7,0.17105]
[1766760616659,25.29569609,2929.2,2924.8,8.28884919]
[1766760616866,0.17084,2928.4,2925.6,0.171]
[1766760617163,0.53435356,2928.3,2924.4,8.28884919]
[1766760617364,0.17092,2927.0,2926.1,0.00512068]
[1766760617657,40.8,2927.6,2924.2,0.17503474]
[1766760617658,0.00512068,2926.6,2924.2,0.17503474]
[1766760617857,0.53448006,2926.5,2924.2,0.00395474]
[1766760618164,0.00512068,2926.6,2924.3,1.7985338]
[1766760618165,0.171,2925.7,2924.3,1.7985338]
[1766760618361,0.00429332,2925.7,2924.2,0.00395474]
[1766760618554,0.53455122,2925.6,2924.2,0.00395474]
[1766760618760,0.53455122,2925.5,2924.2,0.00395474]
[1766760618957,0.17529332,2925.7,2924.2,0.00395474]
[1766760619257,0.00429332,2925.7,2924.2,0.00395474]
[1766760619462,0.00429332,2925.7,2924.3,4.46718215]
[1766760619657,0.00429332,2925.7,2924.2,0.00395474]
[1766760620163,0.70563559,2925.6,2924.2,0.00395474]
[1766760620360,0.17103,2925.2,2924.2,0.00395474]
[1766760620563,0.00512068,2925.0,2923.0,0.01]
[1766760620961,0.17105,2924.9,2923.1,4.3633575]
[1766760621153,0.17105,2924.9,2923.0,0.01]
[1766760621355,0.00512068,2925.0,2923.1,4.38419073]
[1766760621667,0.00512068,2925.0,2923.1,0.00319204]
[1766760621860,0.17105,2924.9,2923.1,0.00319204]
[1766760622057,0.5347858,2924.8,2923.1,0.00319204]
[1766760622360,0.00512068,2925.0,2923.2,4.35140921]
[1766760622668,0.17106,2924.7,2923.1,0.00319204]
[1766760623159,0.00512068,2925.0,2923.2,4.35140921]
[1766760623367,0.53473255,2924.9,2923.2,2.43317742]
[1766760623670,0.17111,2923.7,2921.1,0.24850739]
[1766760623865,2.08127962,2925.1,2921.1,0.24850739]
[1766760623866,0.17114,2923.2,2921.1,0.24850739]
[1766760624060,0.7831,2924.0,2921.1,0.24850739]
[1766760624267,5.91605019,2923.9,2921.1,0.24850739]
[1766760624463,0.00512977,2922.8,2921.1,0.24850739]
[1766760625264,0.00816227,2922.8,2921.1,0.25178593]
[1766760625855,0.5351147,2922.7,2921.1,0.25178593]
[1766760626064,0.53513964,2922.6,2921.1,0.25178593]
[1766760626259,0.17118,2922.7,2921.1,0.25178593]
[1766760626260,0.53513964,2922.5,2921.1,0.25178593]
[1766760626455,0.53513964,2922.4,2921.1,0.25178593]
[1766760626661,0.00816227,2922.8,2921.1,0.25178593]
[1766760627061,0.17106,2924.7,2921.3,0.17125]
[1766760627266,0.53490629,2924.6,2921.5,0.17124]
[1766760627461,0.70597629,2924.5,2921.4,4.49836776]
[1766760627664,0.1711,2923.9,2921.6,4.49836776]
[1766760627862,0.1711,2923.9,2921.1,0.25178593]
[1766760627863,1.43490629,2923.8,2921.3,4.49836776]
[1766760628068,0.00512977,2922.8,2921.1,0.25178593]
[1766760628263,0.53490629,2922.7,2921.1,0.25178593]
[1766760628468,0.53490629,2922.7,2921.1,2.367e-05]
[1766760628670,0.17121,2922.1,2921.1,2.367e-05]
[1766760628865,0.53490629,2922.0,2921.1,2.367e-05]
[1766760629068,0.00512977,2922.8,2921.1,2.367e-05]
[1766760629363,0.00512977,2922.8,2918.7,0.05955875]
[1766760629364,0.00512977,2922.8,2917.6,0.27172738]
[1766760629365,6.53522995,2922.7,2917.6,0.27172738]
[1766760629564,6.53522995,2922.7,2915.9,0.128]
[1766760629565,0.53522995,2922.6,2917.5,23.944]
[1766760629764,0.53522995,2922.6,2916.2,0.17155]
[1766760629765,0.53522995,2922.6,2919.7,4.39909098]
[1766760629965,0.17122,2921.9,2918.3,0.17143]
[1766760630160,0.17122,2921.9,2918.4,0.17142]
[1766760630362,0.17116,2923.0,2919.0,4.54066355]
[1766760630672,0.00512977,2921.3,2920.7,0.00512977]
[1766760630969,0.11958481,2923.1,2920.8,4.54066355]
[1766760631157,0.17113,2923.5,2920.8,8.40407762]
[1766760631361,0.17113,2923.4,2920.8,4.54066355]
[1766760631567,40.8,2924.0,2920.8,4.54066355]
[1766760631772,0.00512977,2922.7,2920.7,0.00856453]
[1766760632266,0.00512977,2922.7,2920.8,4.54801913]
[1766760632467,0.00512977,2922.7,2920.7,0.00856453]
[1766760632662,0.00512977,2922.7,2920.9,4.40395067]
[1766760633067,0.00512977,2922.7,2920.8,4.40395067]
[1766760633068,0.00512977,2922.7,2920.7,0.00856453]
[1766760633269,40.97529611,2924.0,2920.7,0.00856453]
[1766760633270,0.00419611,2924.0,2921.0,8.32034124]
[1766760633464,0.00419611,2924.0,2921.4,0.17125]
[1766760633667,0.00419611,2924.0,2921.1,4.38042008]
[1766760633668,0.17114,2923.4,2921.1,4.38042008]
[1766760633864,0.17114,2923.4,2921.5,4.38042008]
[1766760634060,0.17619611,2924.0,2921.5,4.38042008]
[1766760634061,0.17111,2923.9,2921.5,4.38042008]
[1766760634266,0.00512977,2923.0,2922.4,0.00512977]
[1766760634571,0.00512977,2923.0,2921.6,4.22164742]
[1766760634867,0.00419611,2924.0,2921.4,0.17125]
[1766760635074,0.00419611,2924.0,2921.7,4.41651765]
[1766760635267,0.00419611,2924.0,2922.0,0.17121]
[1766760635475,0.17101,2925.4,2921.8,4.528]
[1766760635476,0.17101,2925.4,2922.3,0.17119]
[1766760635675,0.17108,2924.3,2922.1,4.46255498]
[1766760635972,41.33477463,2925.3,2921.9,4.46255498]
[1766760635973,0.00512977,2923.5,2921.9,4.46255498]
[1766760636173,0.00512977,2923.5,2922.2,4.48465755]
[1766760636373,0.00798854,2923.5,2922.2,4.48465755]
[1766760636572,0.16884458,2924.0,2920.9,0.17128]
[1766760636975,0.16884458,2924.0,2922.1,4.48465755]
[1766760637175,0.17111,2923.9,2920.9,8.30705337]
[1766760637474,0.17111,2923.9,2922.1,0.00512977]
[1766760637475,0.17113,2923.5,2922.1,0.00512977]
[1766760637679,0.00350029,2923.9,2922.1,0.00512977]
[1766760638269,0.17111,2923.8,2922.1,0.00512977]
[1766760638470,0.00350029,2923.9,2922.1,0.00512977]
[1766760638880,0.00350029,2923.9,2922.2,4.48310735]
[1766760639077,0.171,2925.6,2922.5,0.17118]
[1766760639274,0.70011605,2925.5,2922.5,0.17118]
[1766760639471,0.52910605,2925.4,2922.6,8.01205341]
[1766760639676,0.52910605,2925.4,2923.7,0.00512977]
[1766760639875,40.8,2926.0,2923.7,0.00512977]
[1766760640079,0.00309136,2926.0,2923.8,4.44953034]
[1766760640379,0.53133525,2925.9,2923.8,4.44953034]
[1766760640680,0.0032697,2925.1,2923.7,0.00807171]
[1766760640974,0.00309136,2926.0,2923.7,0.00807171]
[1766760641176,0.17103,2925.1,2923.7,0.00807171]
[1766760641372,0.53128347,2925.0,2923.7,0.00807171]
[1766760641568,0.53128347,2925.0,2919.8,3.394]
[1766760641569,1.41850625,2924.9,2920.9,0.17128]
[1766760641781,0.17113,2923.5,2920.9,0.17128]
[1766760641972,0.53128347,2923.4,2921.3,0.17125]
[1766760642172,2.29172642,2925.3,2921.0,4.53453541]
[1766760642173,0.17109,2924.1,2921.0,4.77716738]
[1766760642479,1.14203957,2925.5,2922.1,0.17121]
[1766760642775,43.3538256,2925.4,2922.3,0.00512977]
[1766760642985,0.17108,2924.4,2922.3,0.00512977]
[1766760643180,1.41178603,2925.3,2922.3,0.00512977]
[1766760643181,0.17112,2923.6,2922.3,0.00512977]
[1766760643372,0.52259896,2923.5,2922.3,0.00512977]
[1766760643867,41.94203957,2924.4,2922.3,0.00512977]
[1766760643868,0.17109,2924.2,2922.3,0.00512977]
[1766760644069,0.52318899,2924.1,2922.4,4.52355186]
[1766760644267,0.52318899,2924.0,2922.4,4.52355186]
[1766760644470,0.52318899,2924.0,2922.3,0.00512977]
[1766760644974,1.14203957,2925.8,2922.8,0.17116]
[1766760645175,0.17106,2924.7,2923.9,0.00512977]
[1766760645879,0.89164188,2924.6,2922.3,0.1712]
[1766760646076,0.89164188,2924.5,2922.3,0.1712]
[1766760646273,0.89225228,2924.4,2922.3,4.51041219]
[1766760646475,0.89225228,2924.3,2922.2,4.51041219]
[1766760646677,0.00512977,2923.5,2923.0,0.00512977]
[1766760646877,0.17111,2923.8,2922.4,4.36045554]
[1766760647079,0.17106,2924.6,2922.2,4.36045554]
[1766760647274,2.29172642,2925.4,2922.1,0.00402136]
[1766760647275,1.74861873,2925.5,2922.7,0.17117]
[1766760647479,0.89299739,2925.4,2923.3,0.17114]
[1766760647778,0.00283483,2925.5,2922.8,8.02300005]
[1766760647975,0.00283483,2925.5,2923.9,0.00512977]
[1766760648377,0.00283483,2925.5,2924.0,4.36545683]
[1766760648583,0.17094,2926.7,2924.0,8.40545824]
[1766760648878,0.17103,2925.1,2922.5,0.17118]
[1766760649073,40.8,2926.0,2919.9,26.99857306]
[1766760649074,0.17106,2924.7,2921.7,1.91396575]
[1766760649273,3.394,2925.8,2921.7,1.91396575]
[1766760649274,1.06451415,2924.6,2921.7,1.74273575]
[1766760649474,0.8932205,2924.5,2922.6,4.47094804]
[1766760649682,0.17380542,2924.6,2922.4,0.17119]
[1766760649882,0.00274542,2924.6,2922.7,8.0562302]
[1766760650078,0.17102,2925.4,2923.2,0.00512977]
[1766760650384,1.7457839,2926.0,2922.8,5.448]
[1766760650385,0.89353869,2925.3,2923.3,4.50176835]
[1766760650575,0.17103,2925.1,2923.3,4.50176835]
[1766760650780,1.7457839,2926.8,2923.4,3.56060593]
[1766760650980,0.17099,2925.8,2924.8,0.00512977]
[1766760651180,0.17099,2925.8,2924.8,0.00771548]
[1766760651778,0.17095,2926.5,2924.8,0.00771548]
[1766760651980,0.00438185,2926.8,2924.8,0.00771548]
[1766760651981,0.89046479,2926.4,2924.9,4.45132817]
[1766760652177,0.00438185,2926.8,2924.9,4.45132817]
[1766760652582,0.00438185,2926.8,2925.2,0.17103]
[1766760652788,0.17088,2927.7,2925.2,0.17103]
[1766760652982,0.17088,2927.7,2925.3,8.59031981]
[1766760653184,0.17084,2928.5,2925.3,8.41929981]
[1766760653384,0.88848005,2928.4,2926.6,0.00512977]
[1766760653686,0.17088,2927.7,2926.6,0.00512977]
[1766760653890,0.17088,2927.7,2924.3,23.951]
[1766760653891,0.88848005,2927.6,2924.3,0.17108]
[1766760654077,0.88848005,2927.5,2924.4,0.166]
[1766760654276,4.03446217,2928.2,2925.3,4.3840689]
[1766760654277,0.88848005,2927.4,2925.3,4.3840689]
[1766760654583,0.88848005,2927.4,2924.9,7.97539993]
[1766760654584,0.88726317,2927.3,2925.0,4.40799158]
[1766760654783,3.48851965,2927.9,2925.0,4.40799158]
[1766760654784,0.17095,2926.6,2925.0,4.40799158]
[1766760655083,0.00512977,2926.1,2925.5,0.00512977]
[1766760655284,0.00874621,2926.1,2925.5,0.00512977]
[1766760655582,0.00874621,2926.1,2923.4,0.17113]
[1766760655888,0.00874621,2926.1,2897.7,16.9714511]
[1766760655889,0.17103,2925.2,2922.6,0.17118]
[1766760656287,0.88654723,2925.1,2922.7,4.50251403]
[1766760656583,0.00361644,2926.1,2921.4,8.35856712]
[1766760656584,0.17109,2924.1,2922.2,4.37824935]
[1766760656785,0.88617277,2924.0,2923.6,9.77e-06]
[1766760656977,0.88617277,2924.0,2922.2,0.00396844]
[1766760656978,0.17446105,2924.0,2922.2,0.00396844]
[1766760657378,0.00336105,2924.0,2922.3,4.458973]
[1766760657787,0.00336105,2924.0,2922.2,0.00396844]
[1766760657989,0.00336105,2924.0,2922.8,0.00512977]